fUST/lending_fUST_20240706
["ID","MTS","AMOUNT","RATE_DAILY","PERIOD"]
[331326520,1720233047236,-164.26754018,0.00049332,120]
[331326521,1720233047245,-270.804384,0.00049332,120]
[331326522,1720233047255,-565.421909,0.00049332,120]
[331326523,1720233047265,-565.421909,0.00049332,120]
[331326524,1720233047275,-151.0,0.00049332,120]
[331326525,1720233047285,-500.0,0.00049342,2]
[331326526,1720233047295,-500.0,0.00049342,120]
[331326527,1720233047305,-500.0,0.00049342,120]
[331326528,1720233047314,-500.49467213,0.00049342,120]
[331326529,1720233047324,-461.69836469,0.00049342,120]
[331326530,1720233047333,-500.44533801,0.00049342,120]
[331326531,1720233047343,-500.0,0.00049342,120]
[331326532,1720233047352,-501.24286204,0.00049342,120]
[331326533,1720233047362,-377.15238233,0.00049342,120]
[331326534,1720233047371,-500.0,0.00049342,120]
[331326535,1720233047381,-501.25187537,0.00049342,120]
[331326536,1720233047391,-502.32776504,0.00049342,120]
[331326537,1720233047400,-500.0,0.00049342,120]
[331326538,1720233047409,-500.0,0.00049342,120]
[331326539,1720233047419,-500.77050108,0.00049342,120]
[331326540,1720233047428,-500.0,0.00049342,120]
[331326541,1720233047438,-500.0,0.00049342,120]
[331326542,1720233047447,-505.42259808,0.00049342,120]
[331326543,1720233047457,-500.0,0.00049342,120]
[331326544,1720233047466,-500.0,0.00049342,120]
[331326545,1720233047476,-416.42157168,0.00049342,120]
[331326546,1720233047485,-500.0,0.00049342,120]
[331326547,1720233047494,-504.59976822,0.00049342,120]
[331326548,1720233047504,-523.4,0.00049342,120]
[331326549,1720233047513,-500.0,0.00049342,120]
[331326550,1720233047523,-501.72416832,0.00049342,120]
[331326551,1720233047533,-500.0,0.00049342,120]
[331326552,1720233047543,-502.35498006,0.00049342,120]
[331326554,1720233047552,-761.51,0.00049342,120]
[331326555,1720233047562,-500.0,0.00049342,120]
[331326557,1720233047571,-500.0,0.00049342,120]
[331326558,1720233047581,-500.0,0.00049342,120]
[331326559,1720233047590,-533.02935836,0.00049342,120]
[331326560,1720233047600,-500.0,0.00049342,120]
[331326561,1720233047609,-500.0,0.00049342,120]
[331326562,1720233047620,-678.85,0.00049342,120]
[331326563,1720233047629,-500.0,0.00049342,120]
[331326564,1720233047638,-500.0,0.00049342,120]
[331326565,1720233047647,-441.16924638,0.00049342,120]
[331326566,1720233047656,-500.0,0.00049342,120]
[331326567,1720233047665,-429.40917155,0.00049342,120]
[331326568,1720233047674,-500.0,0.00049342,120]
[331326570,1720233047683,-227.86713092,0.00049342,120]
[331326571,1720233047692,-899.93,0.00049342,120]
[331326572,1720233047702,-503.84533769,0.00049342,120]
[331326573,1720233047711,-506.49940127,0.00049342,120]
[331326575,1720233047719,-503.86347067,0.00049342,20]
[331326577,1720233047729,-500.0,0.00049342,120]
[331326578,1720233047740,-500.0,0.00049342,120]
[331326579,1720233047750,-571.56680637,0.00049342,120]
[331326580,1720233047759,-770.05,0.00049342,120]
[331326581,1720233047768,-504.47356536,0.00049342,120]
[331326582,1720233047777,-503.66533279,0.00049342,120]
[331326583,1720233047786,-500.0,0.00049342,120]
[331326584,1720233047796,-285.88347381,0.00049342,120]
[331326585,1720233047806,-217.02051046,0.00049342,120]
[331326586,1720233047817,-500.0,0.00049342,120]
[331326587,1720233047828,-518.84311133,0.00049342,120]
[331326588,1720233047837,-500.0,0.00049342,120]
[331326589,1720233047846,-505.65945336,0.00049342,120]
[331326590,1720233047855,-500.0,0.00049342,120]
[331326591,1720233047866,-500.0,0.00049342,120]
[331326592,1720233047875,-500.0,0.00049342,120]
[331326593,1720233047884,-503.09977938,0.00049342,120]
[331326594,1720233047894,-500.0,0.00049342,120]
[331326595,1720233047906,-500.85296842,0.00049342,120]
[331326596,1720233047915,-500.0,0.00049342,120]
[331326597,1720233047925,-500.0,0.00049342,120]
[331326598,1720233047934,-500.0,0.00049342,120]
[331326599,1720233047944,-500.0,0.00049342,120]
[331326600,1720233047953,-502.05209608,0.00049342,120]
[331326601,1720233047963,-500.0,0.00049342,120]
[331326602,1720233047973,-503.33732754,0.00049342,120]
[331326603,1720233047982,-586.78,0.00049342,120]
[331326604,1720233047991,-500.0,0.00049342,120]
[331326605,1720233048000,-500.0,0.00049342,120]
[331326606,1720233048010,-500.0,0.00049342,120]
[331326607,1720233048019,-500.0,0.00049342,120]
[331326608,1720233048028,-500.0,0.00049342,120]
[331326609,1720233048037,-500.0,0.00049342,120]
[331326610,1720233048047,-500.0,0.00049342,120]
[331326611,1720233048057,-501.67474293,0.00049342,120]
[331326612,1720233048066,-420.18651975,0.00049342,120]
[331326613,1720233048076,-501.08395956,0.00049342,120]
[331326614,1720233048085,-503.59818437,0.00049342,120]
[331326615,1720233048096,-500.69,0.00049342,120]
[331326616,1720233048105,-500.0,0.00049342,120]
[331326617,1720233048114,-717.65,0.00049342,120]
[331326618,1720233048123,-500.0,0.00049342,120]
[331326619,1720233048132,-500.0,0.00049342,120]
[331326620,1720233048141,-500.0,0.00049342,120]
[331326621,1720233048150,-500.0,0.00049342,120]
[331326622,1720233048159,-502.10018789,0.00049342,120]
[331326623,1720233048167,-504.43359704,0.00049342,120]
[331326624,1720233048177,-500.0,0.00049342,120]
[331326625,1720233048187,-500.0,0.00049342,120]
[331326626,1720233048196,-500.0,0.00049342,120]
[331326627,1720233048205,-516.23162649,0.00049342,120]
[331326628,1720233048214,-500.0,0.00049342,120]
[331326629,1720233048223,-582.96,0.00049342,120]
[331326630,1720233048250,-502.64253849,0.00049342,120]
[331326631,1720233048259,-500.0,0.00049342,120]
[331326632,1720233048268,-500.0,0.00049342,120]
[331326633,1720233048278,-500.0,0.00049342,120]
[331326634,1720233048287,-500.0,0.00049342,120]
[331326635,1720233048296,-500.0,0.00049342,120]
[331326636,1720233048305,-502.30077998,0.00049342,120]
[331326637,1720233048314,-500.0,0.00049342,120]
[331326638,1720233048323,-503.32745744,0.00049342,120]
[331326639,1720233048332,-500.77227101,0.00049342,120]
[331326640,1720233048341,-500.0,0.00049342,120]
[331326641,1720233048350,-504.04213929,0.00049342,120]
[331326642,1720233048359,-503.91071896,0.00049342,120]
[331326643,1720233048368,-500.0,0.00049342,120]
[331326644,1720233048377,-500.0,0.00049342,120]
[331326645,1720233048386,-502.38945978,0.00049342,120]
[331326646,1720233048395,-500.0,0.00049342,120]
[331326647,1720233048404,-502.6192319,0.00049342,120]
[331326648,1720233048413,-500.0,0.00049342,120]
[331326649,1720233048422,-502.23269529,0.00049342,120]
[331326650,1720233048432,-527.08473091,0.00049342,120]
[331326651,1720233048441,-500.0,0.00049342,120]
[331326652,1720233048451,-500.0,0.00049342,120]
[331326653,1720233048461,-506.36082309,0.00049342,120]
[331326654,1720233048469,-503.91959188,0.00049342,120]
[331326655,1720233048478,-502.17111212,0.00049342,120]
[331326656,1720233048487,-1006.74970417,0.00049342,120]
[331326657,1720233048496,-369.80115828,0.00049342,120]
[331326658,1720233048506,-503.08933413,0.00049342,120]
[331326659,1720233048515,-503.78033136,0.00049342,120]
[331326660,1720233048524,-501.69575777,0.00049342,120]
[331326661,1720233048533,-500.0,0.00049342,120]
[331326662,1720233048542,-503.04894093,0.00049342,120]
[331326663,1720233048551,-155.551851,0.00049342,120]
[331326664,1720233048560,-500.0,0.00049342,2]
[331326665,1720233048569,-200.0,0.00049342,7]
[331326666,1720233048578,-500.0,0.00049342,120]
[331326667,1720233048587,-500.0,0.00049342,120]
[331326668,1720233048596,-501.1615642,0.00049342,120]
[331326669,1720233048605,-501.29745612,0.00049342,120]
[331326670,1720233048614,-500.0,0.00049342,120]
[331326671,1720233048623,-503.912605,0.00049342,120]
[331326672,1720233048632,-500.0,0.00049342,120]
[331326673,1720233048641,-500.0,0.00049342,120]
[331326674,1720233048650,-503.18708451,0.00049342,120]
[331326675,1720233048659,-243.96858152,0.00049342,120]
[331326676,1720233048668,-505.75847276,0.00049342,120]
[331326677,1720233048677,-500.0,0.00049342,22]
[331326678,1720233048686,-502.32531288,0.00049342,120]
[331326679,1720233048695,-1215.46,0.00049342,120]
[331326680,1720233048727,-500.9536471,0.00049342,120]
[331326681,1720233048747,-631.01877915,0.00049342,120]
[331326682,1720233048756,-500.0,0.00049342,120]
[331326683,1720233048765,-500.0,0.00049342,120]
[331326684,1720233048775,-501.4829129,0.00049342,120]
[331326685,1720233048784,-500.0,0.00049342,120]
[331326686,1720233048794,-501.14669504,0.00049342,120]
[331326687,1720233048803,-500.0,0.00049342,120]
[331326688,1720233048813,-502.25124343,0.00049342,120]
[331326689,1720233048827,-500.93996931,0.00049342,120]
[331326690,1720233048836,-500.0,0.00049342,120]
[331326691,1720233048847,-502.81034598,0.00049342,120]
[331326692,1720233048857,-502.43079913,0.00049342,120]
[331326693,1720233048866,-501.07035783,0.00049342,120]
[331326694,1720233048876,-500.0,0.00049342,120]
[331326695,1720233048885,-502.03196581,0.00049342,120]
[331326696,1720233048895,-502.71534729,0.00049342,120]
[331326697,1720233048905,-508.90481773,0.00049342,120]
[331326698,1720233048915,-502.15660603,0.00049342,120]
[331326699,1720233048925,-502.27962328,0.00049342,120]
[331326700,1720233048935,-927.53012031,0.00049342,120]
[331326701,1720233049121,-540.95987969,0.00049342,120]
[331326702,1720233049130,-501.59045021,0.00049342,120]
[331326703,1720233049140,-500.0,0.00049342,120]
[331326704,1720233049149,-500.0,0.00049342,120]
[331326705,1720233049159,-500.0,0.00049342,120]
[331326706,1720233049169,-500.0,0.00049342,120]
[331326707,1720233049179,-500.0,0.00049342,120]
[331326708,1720233049189,-1328.37,0.00049342,120]
[331326709,1720233049199,-501.66657909,0.00049342,120]
[331326710,1720233049208,-500.81237583,0.00049342,120]
[331326711,1720233049217,-501.2062978,0.00049342,120]
[331326712,1720233049371,-500.0,0.00049342,120]
[331326713,1720233049382,-509.26194695,0.00049342,120]
[331326714,1720233049391,-501.18749534,0.00049342,120]
[331326715,1720233049401,-500.73743651,0.00049342,120]
[331326716,1720233049411,-502.29654849,0.00049342,120]
[331326717,1720233049427,-500.0,0.00049342,120]
[331326718,1720233049450,-505.23006098,0.00049342,120]
[331326719,1720233049460,-506.00473758,0.00049342,120]
[331326720,1720233049469,-501.9909106,0.00049342,120]
[331326721,1720233049478,-503.66318536,0.00049342,120]
[331326722,1720233049487,-500.82146768,0.00049342,120]
[331326723,1720233049497,-502.51654895,0.00049342,120]
[331326724,1720233049506,-501.45298817,0.00049342,120]
[331326725,1720233049515,-500.0,0.00049342,120]
[331326726,1720233049525,-500.0,0.00049342,120]
[331326727,1720233049534,-500.0,0.00049342,120]
[331326728,1720233049545,-501.32449361,0.00049342,120]
[331326729,1720233049554,-500.0,0.00049342,120]
[331326730,1720233049563,-1130.54,0.00049342,120]
[331326731,1720233049577,-500.0,0.00049342,120]
[331326732,1720233049586,-500.0,0.00049342,120]
[331326733,1720233049595,-500.0,0.00049342,120]
[331326734,1720233049604,-500.0,0.00049342,120]
[331326735,1720233049615,-500.0,0.00049342,120]
[331326736,1720233049624,-500.0,0.00049342,120]
[331326737,1720233049634,-500.0,0.00049342,120]
[331326738,1720233049643,-500.0,0.00049342,120]
[331326739,1720233049652,-330.84644711,0.00049342,120]
[331326740,1720233049662,-500.0,0.00049342,120]
[331326741,1720233049672,-500.0,0.00049342,120]
[331326742,1720233049681,-500.0,0.00049342,120]
[331326743,1720233049691,-501.27307828,0.00049342,120]
[331326744,1720233049700,-500.0,0.00049342,120]
[331326745,1720233049710,-500.0,0.00049342,120]
[331326746,1720233049719,-1394.92,0.00049342,120]
[331326747,1720233049728,-506.31691274,0.00049342,120]
[331326748,1720233049738,-503.48956537,0.00049342,120]
[331326749,1720233049748,-500.0,0.00049342,120]
[331326750,1720233049759,-500.0,0.00049342,120]
[331326751,1720233049768,-506.97589547,0.00049342,120]
[331326752,1720233049777,-597.84,0.00049342,120]
[331326753,1720233049787,-509.87386553,0.00049342,120]
[331326754,1720233049798,-500.0,0.00049342,120]
[331326755,1720233049822,-501.61407002,0.00049342,120]
[331326756,1720233049832,-500.0,0.00049342,120]
[331326757,1720233049842,-500.0,0.00049342,120]
[331326758,1720233049851,-501.58262161,0.00049342,120]
[331326759,1720233049861,-500.0,0.00049342,120]
[331326760,1720233049871,-225.18876167,0.00049342,120]
[331326761,1720233049880,-190.15995,0.00049342,120]
[331326762,1720233049889,-500.60007697,0.00049342,120]
[331326763,1720233049899,-501.45129689,0.00049342,120]
[331326764,1720233049910,-502.02663637,0.00049342,120]
[331326765,1720233049920,-500.0,0.00049342,120]
[331326766,1720233049930,-151.0,0.00049342,120]
[331326767,1720233049939,-151.0,0.00049342,120]
[331326768,1720233049949,-225.242087,0.00049342,120]
[331326769,1720233049960,-500.0,0.00049342,120]
[331326770,1720233049969,-502.14709051,0.00049342,120]
[331326771,1720233049978,-282.51011258,0.00049342,120]
[331326772,1720233049987,-500.0,0.00049342,120]
[331326773,1720233049998,-500.0,0.00049342,120]
[331326774,1720233050008,-500.0,0.00049342,120]
[331326775,1720233050018,-500.0,0.00049342,120]
[331326776,1720233050027,-500.0,0.00049342,120]
[331326777,1720233050037,-500.0,0.00049342,120]
[331326778,1720233050047,-1183.48,0.00049342,120]
[331326779,1720233050057,-500.0,0.00049342,120]
[331326780,1720233050067,-500.0,0.00049342,120]
[331326781,1720233050077,-500.0,0.00049342,120]
[331326782,1720233050087,-500.0,0.00049342,120]
[331326783,1720233050098,-500.0,0.00049342,120]
[331326784,1720233050107,-500.0,0.00049342,120]
[331326785,1720233050118,-1297.18,0.00049342,120]
[331326786,1720233050128,-500.0,0.00049342,120]
[331326787,1720233050137,-1547.82065841,0.00049342,120]
[331326788,1720233050153,-384.816,0.00049342,120]
[331326789,1720233050166,-1096.09827437,0.00049342,120]
[331326790,1720233050233,-1052.01506722,0.00049342,120]
[331326791,1720233050243,-502.91924705,0.00049342,120]
[331326792,1720233050253,-160.46491895,0.00049342,120]
[331326793,1720233050263,-500.0,0.00049342,120]
[331326794,1720233050273,-502.10208647,0.00049342,120]
[331326795,1720233050283,-182.788792,0.00049342,120]
[331326796,1720233050293,-182.788792,0.00049342,120]
[331326797,1720233050303,-182.788792,0.00049342,120]
[331326798,1720233050314,-182.788792,0.00049342,120]
[331326799,1720233050324,-182.788792,0.00049342,120]
[331326800,1720233050334,-182.788792,0.00049342,120]
[331326801,1720233050343,-500.5055612,0.00049342,120]
[331326802,1720233050352,-182.788792,0.00049342,120]
[331326803,1720233050362,-501.49158823,0.00049342,120]
[331326804,1720233050371,-182.788792,0.00049342,120]
[331326805,1720233050381,-182.788792,0.00049342,120]
[331326806,1720233050390,-182.788792,0.00049342,120]
[331326807,1720233050400,-182.788792,0.00049342,120]
[331326808,1720233050409,-182.788792,0.00049342,120]
[331326809,1720233050419,-182.788792,0.00049342,120]
[331326810,1720233050428,-182.788801,0.00049342,120]
[331326811,1720233050437,-505.14523117,0.00049342,120]
[331326812,1720233050447,-500.73551404,0.00049342,120]
[331326813,1720233050456,-500.0,0.00049342,120]
[331326814,1720233050465,-500.0,0.00049342,120]
[331326815,1720233050474,-1186.09,0.00049342,120]
[331326816,1720233050483,-500.0,0.00049342,120]
[331326817,1720233050492,-503.2955273,0.00049342,120]
[331326818,1720233050502,-636.7793891,0.00049342,120]
[331326819,1720233050511,-546.88,0.00049342,120]
[331326820,1720233050520,-502.63827144,0.00049342,120]
[331326821,1720233050529,-508.57067345,0.00049342,120]
[331326822,1720233050539,-500.0,0.00049342,120]
[331326823,1720233050548,-500.79512601,0.00049342,120]
[331326824,1720233050558,-503.19397751,0.00049342,120]
[331326825,1720233050567,-555.65,0.00049342,120]
[331326826,1720233050576,-1072.46,0.00049342,120]
[331326827,1720233050586,-501.08029182,0.00049342,120]
[331326828,1720233050595,-502.32772407,0.00049342,120]
[331326829,1720233050604,-500.0,0.00049342,120]
[331326830,1720233050614,-680.14,0.00049342,120]
[331326831,1720233050624,-502.15914318,0.00049342,120]
[331326832,1720233050636,-500.0,0.00049342,120]
[331326833,1720233050646,-516.58632574,0.00049342,120]
[331326834,1720233050656,-500.0,0.00049342,120]
[331326835,1720233050665,-504.64082018,0.00049342,120]
[331326836,1720233050675,-503.1657776,0.00049342,120]
[331326837,1720233050684,-504.57365438,0.00049342,120]
[331326838,1720233050695,-500.59466982,0.00049342,120]
[331326839,1720233050705,-617.79895715,0.00049342,120]
[331326840,1720233050714,-192.61237019,0.00049342,120]
[331326841,1720233050724,-293.48680536,0.00049342,120]
[331326842,1720233050738,-206.51319464,0.00049342,120]
[331326843,1720233050747,-503.46599222,0.00049342,120]
[331326844,1720233050756,-502.63567696,0.00049342,120]
[331326845,1720233050765,-500.50121324,0.00049342,120]
[331326846,1720233050775,-287.35740494,0.00049342,120]
[331326847,1720233051081,-290.582392,0.000492,14]
[331326848,1720233051095,-216.53550251,0.00049342,120]
[331326849,1720233051108,-5292.88210549,0.00049342,120]
[331326850,1720233051591,-151.0,0.000492,14]
[331326851,1720233051603,-290.582392,0.00049205,14]
[331326852,1720233051615,-209.0,0.00049205,14]
[331326853,1720233051629,-290.582392,0.00049215,14]
[331326854,1720233051646,-290.582392,0.00049285,14]
[331326855,1720233051670,-290.582392,0.00049315,14]
[331326856,1720233051684,-290.582392,0.00049315,14]
[331326857,1720233051702,-890.34789451,0.00049342,120]
[331326858,1720233051713,-226.74014549,0.00049342,120]
[331326859,1720233051736,-273.25985451,0.00049342,120]
[331326860,1720233051749,-505.43508449,0.00049342,120]
[331326861,1720233051763,-502.53358695,0.00049342,30]
[331326862,1720233051776,-500.0,0.00049342,120]
[331326863,1720233051789,-500.0,0.00049342,120]
[331326864,1720233051802,-503.00545754,0.00049342,120]
[331326865,1720233051817,-500.0,0.00049342,120]
[331326866,1720233051835,-504.86,0.00049342,120]
[331326867,1720233051848,-450.91884024,0.00049342,120]
[331326868,1720233051861,-501.06315684,0.00049342,120]
[331326869,1720233051875,-503.8053937,0.00049342,120]
[331326870,1720233051887,-532.28415372,0.00049342,120]
[331326871,1720233051900,-500.0,0.00049342,120]
[331326872,1720233051914,-500.0,0.00049342,120]
[331326873,1720233051926,-502.7866068,0.00049342,120]
[331326874,1720233051940,-1094.2,0.00049342,120]
[331326875,1720233051951,-955.65,0.00049342,120]
[331326876,1720233051963,-500.0,0.00049342,120]
[331326877,1720233051974,-170.31840121,0.00049342,120]
[331326878,1720233051990,-329.68159879,0.00049342,120]
[331326879,1720233052001,-502.75831726,0.00049342,120]
[331326880,1720233052011,-500.0,0.00049342,120]
[331326881,1720233052023,-500.0,0.00049342,120]
[331326882,1720233052036,-508.27843015,0.00049342,120]
[331326883,1720233052048,-532.12,0.00049342,120]
[331326884,1720233052059,-500.0,0.00049342,120]
[331326885,1720233052070,-501.06330563,0.00049342,120]
[331326886,1720233052081,-500.0,0.00049342,120]
[331326887,1720233052094,-713.76,0.00049342,120]
[331326888,1720233052105,-500.0,0.00049342,120]
[331326889,1720233052116,-942.48,0.00049342,120]
[331326890,1720233052127,-501.8592811,0.00049342,120]
[331326891,1720233052139,-500.0,0.00049342,120]
[331326892,1720233052151,-500.0,0.00049342,120]
[331326893,1720233052162,-3.24906707,0.00049342,120]
[331326894,1720233052180,-497.5522478,0.00049342,120]
[331326895,1720233052192,-543.67572734,0.00049342,3]
[331326896,1720233052204,-500.0,0.00049342,120]
[331326897,1720233052216,-503.32735446,0.00049342,120]
[331326898,1720233052227,-500.0,0.00049342,120]
[331326899,1720233052239,-500.0,0.00049342,120]
[331326900,1720233052251,-500.0,0.00049342,120]
[331326901,1720233052263,-501.54713204,0.00049342,120]
[331326902,1720233052274,-169.84536627,0.00049342,120]
[331326903,1720233052741,-1189.97,0.00049232,3]
[331326904,1720233065189,2247.94269303,0.00035826,4]
[331326905,1720233128380,210.8225811,0.00043513,2]
[331326987,1720233795364,-300.0,0.00016099,2]
[331326988,1720233795392,-300.0,0.00016099,2]
[331326989,1720233795415,-1115.3993,0.000161,2]
[331326993,1720233892767,-275.53975653,0.000139,2]
[331326994,1720233893747,-29724.46024347,0.000161,2]
[331326998,1720233967699,-1289.92537926,0.000161,2]
[331327001,1720234027660,-171.638693,0.00021096,2]
[331327002,1720234027719,-499.95778,0.00031,30]
[331327003,1720234027762,-548.03872482,0.00032667,2]
[331327004,1720234027787,-548.03872482,0.00038503,2]
[331327005,1720234027809,-440.67378173,0.00039999,4]
[331327006,1720234027833,-171.638693,0.00040411,2]
[331327007,1720234027856,-175.310833,0.00041307,2]
[331327008,1720234027879,-1100.53231169,0.00042398,4]
[331327009,1720234027902,-1653.48030624,0.00043513,4]
[331327010,1720234034084,-160.0,0.00042088,3]
[331327011,1720234034110,-3726.49484993,0.00043513,4]
[331327012,1720234035186,-1027.61734421,0.00043513,4]
[331327013,1720234035208,-160.0,0.0004391,4]
[331327014,1720234035234,-548.03872482,0.00044338,28]
[331327015,1720234035255,-160.0,0.00045733,5]
[331327016,1720234035276,-500.0,0.00046574,120]
[331327017,1720234035299,-175.1,0.0004662,60]
[331327018,1720234035322,-175.1,0.00046894,60]
[331327019,1720234035344,-5869.43105958,0.00047,30]
[331327020,1720234051994,-13771.94985501,0.00047,30]
[331327021,1720234149266,-154.88310816,0.00043513,4]
[331327022,1720234149296,-408.70455851,0.00043513,4]
[331327023,1720234149319,-1100.53231169,0.00043834,4]
[331327041,1720234233208,-191.02183617,0.00032219,7]
[331327042,1720234233225,-1680.83110298,0.00047,30]
[331327043,1720234233238,-7874.75599839,0.00047,30]
[331327044,1720234233248,-1905.91435687,0.00047,2]
[331327103,1720234243481,-1094.08564313,0.00047,2]
[331327104,1720234243491,-160.0,0.00047556,6]
[331327105,1720234243502,-153.0,0.00047945,2]
[331327106,1720234243512,-153.0,0.00047945,2]
[331327107,1720234243522,-153.0,0.00047945,2]
[331327108,1720234243532,-154.8434201,0.00047945,2]
[331327109,1720234243542,-187.82,0.00048045,2]
[331327110,1720234243552,-343.88986877,0.0004892,2]
[331327111,1720234243564,-258.14964649,0.0004892,2]
[331327112,1720234243575,-2040.34238499,0.00049,120]
[331327113,1720234243585,-1000.0,0.00049,120]
[331327114,1720234243595,-800.0,0.00049,120]
[331327115,1720234243606,-937.0,0.00049,120]
[331327116,1720234243616,-1134.26825688,0.000491,120]
[331327117,1720234243626,-150.1953184,0.00049131,2]
[331327118,1720234243636,-150.19531838,0.00049186,2]
[331327119,1720234243646,-2386.98,0.0004919,3]
[331327120,1720234243656,-68.2254427,0.0004919,3]
[331327121,1720234243997,-1920.9245573,0.0004919,3]
[331327122,1720234244006,-1764.31358476,0.000492,120]
[331327123,1720234244018,-46156.17252937,0.000492,120]
[331327129,1720234245146,159.344135,0.00021096,2]
[331327178,1720234247822,-587.24,0.000492,120]
[331327179,1720234247889,-25080.49473074,0.000492,120]
[331327181,1720234283776,1100.53231169,0.00043834,4]
[331327182,1720234300665,1100.53231169,0.00043834,4]
[331327185,1720235237214,-171.638693,0.00021096,2]
[331327186,1720235237237,-2041.0,0.00032215,30]
[331327187,1720235237262,-235.230111,0.00037448,2]
[331327188,1720235237285,-248.2903612,0.00037549,2]
[331327189,1720235237309,-247.72439914,0.00040278,2]
[331327190,1720235237332,-1100.53231169,0.00041589,4]
[331327191,1720235237356,-155.2536449,0.00041941,4]
[331327192,1720235237378,-155.3743637,0.00041941,4]
[331327193,1720235237401,-155.0203609,0.00042229,4]
[331327194,1720235237426,-3760.14361925,0.00043286,20]
[331327195,1720235237451,-307.48732557,0.00043834,4]
[331327196,1720235237505,-172.58674043,0.00043834,4]
[331327197,1720235237536,-570.51953331,0.00046527,28]
[331327198,1720235237984,-504.31339766,0.00046627,120]
[331327199,1720235238010,-500.4798113,0.00046627,120]
[331327200,1720235238444,-510.30515403,0.00046627,120]
[331327201,1720235238468,-500.0,0.00046627,120]
[331327202,1720235238490,-153.92886431,0.00046627,120]
[331327203,1720235238514,-14.7745392,0.00046627,120]
[331327204,1720235243320,-485.2254608,0.00046627,120]
[331327205,1720235244461,-500.0,0.00046627,120]
[331327206,1720235245041,-500.0,0.00046627,120]
[331327207,1720235245719,-501.33884234,0.00046627,120]
[331327208,1720235246598,-24.8398535,0.00046627,120]
[331327209,1720235348397,-749.3596177,0.00043834,4]
[331327210,1720235361733,157.52474722,0.00043834,4]
[331327211,1720235375917,566.29192821,0.00043834,4]
[331327212,1720235385315,155.25295908,0.00043834,2]
[331327213,1720235386265,3363.28950315,0.00043834,4]
[331327214,1720235387098,1193.49436015,0.00043834,4]
[331327215,1720235393217,160.0,0.00044822,4]
[331327216,1720235393563,160.0,0.00042543,3]
[331327217,1720235417195,312.97857034,0.00043834,4]
[331327302,1720235436505,-515.96489989,0.000466,120]
[331327303,1720235436516,-1128.7136731,0.000466,120]
[331327326,1720235441029,-2680.90347307,0.000466,120]
[331327327,1720235441041,-1000.0,0.000466,120]
[331327328,1720235441051,-500.0,0.00046626,120]
[331327329,1720235441217,-1310.77,0.00046626,120]
[331327330,1720235441232,-500.0,0.00046626,120]
[331327331,1720235441243,-3362.43,0.00046626,120]
[331327332,1720235441253,-204.91159259,0.00046627,120]
[331327333,1720235441262,-500.0,0.00046627,120]
[331327334,1720235441272,-522.14918428,0.00046627,120]
[331327335,1720235441281,-507.32173901,0.00046627,120]
[331327336,1720235441290,-500.0,0.00046627,120]
[331327337,1720235441300,-502.70624782,0.00046627,120]
[331327338,1720235441311,-500.0,0.00046627,120]
[331327339,1720235441320,-500.64279577,0.00046627,120]
[331327340,1720235441330,-500.0,0.00046627,120]
[331327341,1720235441339,-556.38369296,0.00046627,120]
[331327342,1720235441350,-500.0,0.00046627,120]
[331327343,1720235441359,-504.96556493,0.00046627,120]
[331327344,1720235441369,-502.01826019,0.00046627,120]
[331327345,1720235441379,-500.0,0.00046627,120]
[331327346,1720235441389,-500.0,0.00046627,120]
[331327347,1720235441402,-500.0,0.00046627,120]
[331327348,1720235441411,-500.98507302,0.00046627,120]
[331327349,1720235441420,-500.0,0.00046627,120]
[331327350,1720235441430,-500.0,0.00046627,120]